bitfinex/quotes_ETHUSD_20240822
["timestamp","ask_amount","ask_price","bid_price","bid_amount"]
[1724333532024,3.80738,2626.5,2625.4,3.80888]
[1724333532377,2.2927,2626.6,2625.5,3.80871]
[1724333532378,3.80781,2626.2,2625.5,3.80871]
[1724333532578,3.80808,2626.0,2625.3,3.80907]
[1724333532811,6.29868,2626.0,2625.3,3.80907]
[1724333533013,6.29868,2626.0,2625.2,3.80919]
[1724333533199,2.4906,2626.0,2625.4,3.80894]
[1724333533521,2.4906,2626.0,2625.5,3.80877]
[1724333533721,3.80767,2626.3,2625.4,3.80894]
[1724333533925,3.0,2626.2,2625.6,3.80855]
[1724333534145,3.80883,2625.5,2624.7,3.80992]
[1724333534300,2.4906,2625.6,2623.8,2.4492]
[1724333534301,3.80972,2624.9,2623.8,2.4492]
[1724333534625,10.1396,2625.6,2623.9,0.32113279]
[1724333534626,3.80911,2625.3,2623.9,0.32113279]
[1724333534828,3.0,2625.5,2624.4,2.389]
[1724333535035,3.80905,2625.4,2624.6,3.8101]
[1724333535327,3.0,2625.5,2624.7,3.80993]
[1724333535328,6.80885,2625.5,2624.7,3.80993]
[1724333535528,6.80885,2625.5,2624.8,3.8098]
[1724333535830,6.80885,2625.5,2624.8,3.80971]
[1724333535993,3.0,2625.5,2624.8,0.8620719]
[1724333536192,3.80895,2625.4,2624.7,3.80994]
[1724333536558,3.0,2625.5,2624.9,3.80964]
[1724333536712,3.80841,2625.8,2625.0,3.80948]
[1724333536713,3.0,2625.8,2625.0,3.80948]
[1724333536910,3.80896,2625.4,2624.6,3.81005]
[1724333537113,3.80889,2625.5,2624.7,4.190955]
[1724333537294,0.55,2625.8,2624.7,4.190955]
[1724333537295,3.80894,2625.4,2624.7,4.190955]
[1724333537481,3.80894,2625.4,2624.5,3.81024]
[1724333537482,6.2131,2625.3,2624.5,3.81024]
[1724333537849,3.80938,2625.1,2624.3,3.81052]
[1724333538125,3.80938,2625.1,2624.4,3.81028]
[1724333538293,3.80925,2625.2,2624.5,0.76208]
[1724333538493,3.80938,2625.1,2624.4,3.81028]
[1724333538808,3.80911,2625.3,2624.4,3.81036]
[1724333538984,2.3875,2625.5,2624.6,2.3522]
[1724333539182,2.2918,2625.8,2624.9,3.80961]
[1724333539384,3.80852,2625.7,2625.0,3.80951]
[1724333539634,3.80852,2625.7,2624.9,3.80961]
[1724333539792,3.80875,2625.6,2624.7,4.0527704]
[1724333539984,6.10018,2625.8,2625.0,3.80946]
[1724333540204,3.80851,2625.7,2624.9,3.80954]
[1724333540424,6.10018,2625.8,2625.0,3.8095]
[1724333540580,3.80852,2625.7,2624.9,4.59576604]
[1724333540794,3.80866,2625.6,2624.9,3.80954]
[1724333541217,6.10018,2625.8,2624.9,3.80954]
[1724333541398,6.10018,2625.8,2624.9,3.80962]
[1724333541399,2.2918,2625.8,2624.9,3.80962]
[1724333541620,5.2918,2625.8,2625.2,3.80922]
[1724333541803,2.2918,2625.8,2625.2,3.80922]
[1724333542003,14.5849,2626.3,2625.2,0.761849]
[1724333542336,6.20725,2626.8,2625.9,3.8082]
[1724333542535,2.4003,2626.8,2626.2,3.80768]
[1724333542685,2.4003,2627.2,2626.1,0.07615387]
[1724333542885,3.8058,2627.6,2625.9,2.3461]
[1724333543084,2.4003,2627.7,2626.7,3.80702]
[1724333543085,3.8059,2627.5,2626.7,3.80702]
[1724333543307,3.8059,2627.5,2626.0,0.23461]
[1724333543308,3.8059,2627.5,2626.8,3.8069]
[1724333543482,3.8059,2627.5,2626.7,3.80702]
[1724333543679,6.29455,2627.9,2627.0,3.80662]
[1724333543928,3.80579,2627.6,2626.6,3.80717]
[1724333544134,3.80579,2627.6,2626.7,3.80704]
[1724333544487,3.80579,2627.6,2626.5,4.3803975]
[1724333544685,3.80579,2627.6,2626.6,3.80718]
[1724333544886,3.80579,2627.6,2626.5,0.5730675]
[1724333545090,3.80579,2627.6,2626.5,3.5730675]
[1724333545319,3.80549,2627.8,2626.9,3.80666]
[1724333545519,3.80561,2627.7,2626.9,3.80666]
[1724333545725,3.80561,2627.7,2626.6,0.59229675]
[1724333546030,2.8842727,2627.9,2626.6,4.39943675]
[1724333546335,2.8842727,2627.9,2626.6,3.80714]
[1724333546336,3.80603,2627.5,2626.6,3.80714]
[1724333546542,3.80564,2627.7,2626.8,3.80679]
[1724333546836,3.80564,2627.7,2627.0,3.80661]
[1724333547051,5.81,2628.0,2627.4,3.80593]
[1724333547052,2.81,2628.0,2627.4,3.80593]
[1724333547386,6.222,2628.3,2627.8,3.80545]
[1724333547387,2.4172,2628.3,2627.8,3.80545]
[1724333547741,2.4704,2628.8,2628.2,3.80488]
[1724333548235,4.40078152,2628.9,2628.3,3.80474]
[1724333548437,3.80362,2629.1,2628.3,3.80474]
[1724333548584,2.4704,2629.2,2628.5,3.80443]
[1724333548785,0.59658389,2629.3,2628.7,3.80414]
[1724333549020,7.60617,2629.5,2628.7,3.80404]
[1724333549332,2.81,2629.6,2628.9,3.80377]
[1724333549536,6.61286,2629.6,2628.9,3.80377]
[1724333549688,6.27283,2629.9,2629.1,3.80349]
[1724333550033,5.2804,2630.4,2629.2,0.07606696]
[1724333550345,5.2804,2630.4,2629.1,0.38795621]
[1724333550346,2.81,2630.4,2629.9,3.80238]
[1724333550527,2.81,2630.4,2629.3,2.3817]
[1724333550528,2.81,2630.4,2629.7,3.80261]
[1724333550839,2.4474,2630.9,2630.0,3.8022]
[1724333551040,3.80141,2630.6,2629.8,3.80255]
[1724333551341,3.80141,2630.6,2629.7,3.8027]
[1724333551673,3.80171,2630.4,2629.7,3.80269]
[1724333551985,3.80128,2630.7,2629.7,3.80269]
[1724333552490,3.80171,2630.4,2629.5,3.803]
[1724333552840,3.80171,2630.4,2629.3,9.18493]
[1724333552983,3.80232,2630.0,2629.3,6.18493]
[1724333553342,3.80271,2629.7,2628.8,2.2628]
[1724333553538,3.8023,2630.0,2629.0,3.80367]
[1724333553835,3.80233,2630.0,2629.0,3.80367]
[1724333554040,3.80268,2629.8,2629.0,3.80367]
[1724333554185,3.80268,2629.8,2628.9,3.80386]
[1724333554904,3.8023,2630.0,2628.9,0.606666]
[1724333555102,3.8027,2629.8,2628.9,3.80381]
[1724333555310,3.80297,2629.6,2628.9,3.80381]
[1724333555683,3.8027,2629.8,2629.0,3.8037]
[1724333556365,2.3147,2630.1,2628.6,3.0]
[1724333556366,3.80296,2629.6,2628.7,3.80405]
[1724333556638,7.27,2629.7,2628.7,3.80405]
[1724333556784,3.80327,2629.4,2628.7,3.80405]
[1724333556985,3.80327,2629.4,2628.7,3.80404]
[1724333557186,3.80295,2629.6,2628.7,3.80404]
[1724333557187,7.60591,2629.6,2628.8,3.80401]
[1724333557431,7.27,2629.7,2629.1,3.80353]
[1724333558486,7.27,2629.7,2629.1,3.80347]
[1724333558694,7.27,2629.7,2629.3,3.8032]
[1724333558886,7.27,2629.7,2629.0,2.43]
[1724333559130,7.27,2629.7,2629.6,3.80285]
[1724333559386,3.80259,2629.8,2629.2,3.80337]
[1724333559595,3.80276,2629.7,2629.0,2.43]
[1724333559882,3.803,2629.5,2628.9,3.80378]
[1724333560030,3.80315,2629.4,2628.8,3.80399]
[1724333560431,3.80296,2629.6,2628.4,3.80454]
[1724333560432,7.27,2629.6,2628.4,3.80454]
[1724333560666,3.80368,2629.1,2628.4,3.80449]
[1724333561081,3.80336,2629.3,2628.6,3.80422]
[1724333561493,3.80351,2629.2,2628.6,3.80422]
[1724333561638,6.80312,2629.5,2628.6,3.80422]
[1724333561839,3.0,2629.5,2628.8,3.80393]
[1724333562196,11.07298,2629.6,2628.8,0.380393]
[1724333562197,7.27,2629.6,2628.8,0.380393]
[1724333562486,7.27,2629.6,2629.1,3.80348]
[1724333562665,3.80285,2629.7,2629.1,3.80348]
[1724333562867,3.80264,2629.8,2629.2,3.80342]
[1724333563094,23.55244,2629.9,2629.2,6.19252]
[1724333563285,19.75,2629.9,2629.4,3.80304]
[1724333563602,7.27,2630.3,2629.8,3.80246]
[1724333563768,11.07146,2630.6,2629.8,3.80246]
[1724333564106,11.07146,2630.6,2630.0,3.80214]
[1724333564107,7.27,2630.6,2630.0,3.80214]
[1724333564584,11.07144,2630.6,2629.9,2.4857]
[1724333564903,11.07144,2630.6,2629.9,6.916946]
[1724333565048,7.27,2630.6,2630.2,3.80195]
[1724333565250,7.27,2630.9,2630.1,3.80213]
[1724333565445,7.27,2630.9,2630.4,3.80168]
[1724333565688,7.27,2630.9,2630.5,3.80153]
[1724333565890,7.27,2630.9,2630.4,0.760366]
[1724333566101,7.27,2630.9,2630.3,3.80181]
[1724333566495,7.27,2630.9,2629.9,3.114526]
[1724333566719,3.80013,2631.5,2630.7,2.3534]
[1724333566720,7.27,2631.5,2630.7,2.3534]
[1724333566889,3.79982,2631.7,2630.9,3.80086]
[1724333567087,7.27,2631.8,2631.0,0.45609487]
[1724333567255,23.54926,2632.1,2631.3,3.80034]
[1724333567452,7.27,2632.1,2631.2,3.80052]
[1724333567710,0.39736987,2632.8,2630.8,3.80103]
[1724333567711,3.79812,2632.9,2632.0,3.79937]
[1724333567865,2.72325418,2633.2,2631.6,2.3534]
[1724333567866,3.79784,2633.1,2632.1,0.07597676]
[1724333568073,7.3961689,2633.6,2632.5,3.79866]
[1724333568074,3.79741,2633.4,2632.5,3.79866]
[1724333568406,2.4563689,2633.6,2632.3,6.10572]
[1724333568707,3.79795,2633.0,2632.3,3.297295]
[1724333568910,3.79781,2633.1,2632.3,3.297295]
[1724333569076,3.79799,2633.0,2632.3,3.297295]
[1724333569259,3.79799,2633.0,2632.3,2.3068]
[1724333569464,3.79799,2633.0,2632.0,3.79938]
[1724333569465,3.79825,2632.8,2631.9,2.4251]
[1724333569900,3.79825,2632.8,2631.9,6.22462]
[1724333570106,3.79811,2632.9,2631.9,2.4251]
[1724333570308,3.79774,2633.2,2632.2,3.79897]
[1724333570507,3.79724,2633.5,2632.5,3.79862]
[1724333570894,3.9232789,2633.6,2632.7,2.3979]
[1724333571068,3.9232989,2633.6,2632.7,6.19625]
[1724333571268,0.1261689,2633.6,2632.8,3.87418999]
[1724333571463,3.9232989,2633.6,2632.8,1.007057]
[1724333571907,0.1261689,2633.6,2632.7,6.19615]
[1724333572165,0.1261689,2633.6,2633.1,3.79776]
[1724333572366,3.9233789,2633.6,2632.8,3.0]
[1724333572623,0.1261689,2633.6,2632.7,2.3979]
[1724333572828,3.79822,2632.9,2632.2,2.4051]
[1724333573111,3.79795,2633.0,2632.2,2.4051]
[1724333573330,3.79866,2632.6,2631.8,6.20476]
[1724333573511,3.79824,2632.8,2632.1,3.79918]
[1724333573817,3.79795,2633.0,2632.2,6.28808]
[1724333573965,3.7977,2633.2,2632.3,3.79893]
[1724333574167,3.79755,2633.3,2632.4,3.79878]
[1724333574365,3.79725,2633.5,2632.3,1.008717]
[1724333574567,0.1261689,2633.6,2632.2,6.28798]
[1724333574568,3.7978,2633.1,2632.2,6.28798]
[1724333574813,3.79753,2633.3,2632.4,3.79877]
[1724333575014,3.79753,2633.3,2632.5,3.79866]
[1724333575214,0.1261689,2633.6,2632.2,2.489]
[1724333575215,3.79767,2633.2,2632.3,3.79895]
[1724333575366,3.79807,2633.0,2632.2,6.28807]
[1724333575884,3.79781,2633.1,2632.2,2.489]
[1724333576094,3.79799,2633.0,2632.2,6.2881]
[1724333576303,3.79809,2632.9,2632.2,6.2881]
[1724333576482,3.79786,2633.1,2632.3,3.79895]
[1724333576682,3.79786,2633.1,2632.4,3.79878]
[1724333576888,4.39302475,2633.4,2632.8,3.79822]
[1724333576889,0.59562475,2633.4,2632.8,3.79822]
[1724333577184,0.1261689,2633.6,2632.9,2.489]
[1724333577384,0.1261689,2633.6,2633.0,3.79781]
[1724333577920,0.1261689,2633.6,2633.1,3.79779]
[1724333578070,0.1261689,2633.6,2633.2,0.379779]
[1724333578277,0.1261689,2633.6,2633.1,3.7977]
[1724333578617,0.1261689,2633.6,2632.9,6.28705]
[1724333578825,3.9233189,2633.6,2632.9,6.28705]
[1724333578971,0.1261689,2633.6,2633.0,3.79788]
[1724333579166,3.9232789,2633.6,2633.0,3.79788]
[1724333579424,0.1261689,2633.6,2633.0,3.79788]
[1724333579772,3.9232589,2633.6,2632.9,6.28707]
[1724333580023,3.79723,2633.5,2632.9,2.489]
[1724333580322,3.79723,2633.5,2632.9,5.489]
[1724333580470,3.9232989,2633.6,2632.6,2.2628]
[1724333580676,3.9232989,2633.6,2632.8,3.79822]
[1724333580873,0.1261689,2633.6,2633.0,3.79793]
[1724333581298,0.1261689,2633.6,2633.1,3.79779]
[1724333581570,0.1261689,2633.6,2633.2,3.79763]
[1724333581771,0.1261689,2633.6,2633.0,3.79793]
[1724333582026,0.1261689,2633.6,2632.9,3.79804]
[1724333582186,0.1261689,2633.6,2632.7,6.25141]
[1724333582187,3.79761,2633.3,2632.7,2.4531]
[1724333582372,3.9232889,2633.6,2632.9,3.79799]
[1724333584514,3.79761,2633.3,2632.5,3.79859]
[1724333584816,2.3792,2633.5,2632.1,3.79913]
[1724333584817,3.79799,2633.0,2632.3,3.79885]
[1724333585002,0.1261689,2633.6,2632.9,3.79799]
[1724333585184,3.9233689,2633.6,2633.0,3.79794]
[1724333585552,0.1261689,2633.6,2632.6,5.4339]
[1724333585682,3.9232989,2633.6,2633.0,3.79786]
[1724333585874,3.9232989,2633.6,2633.1,3.79778]
[1724333585875,0.1261689,2633.6,2633.1,3.79778]
[1724333586129,0.1261689,2633.6,2633.1,6.19724]
[1724333586632,0.1261689,2633.6,2633.3,3.79739]
[1724333586802,0.1261689,2633.6,2633.2,3.79758]
[1724333587197,0.1261689,2633.6,2633.0,4.557514]
[1724333587198,3.9232489,2633.6,2633.0,0.759604]
[1724333587374,3.9232489,2633.6,2632.8,6.13984]
[1724333587375,3.79723,2633.5,2632.8,6.13984]
[1724333587570,3.79723,2633.5,2632.9,3.0]
[1724333587809,3.79762,2633.3,2632.9,3.0]
[1724333587986,2.3389,2633.5,2632.5,2.3417]
[1724333588195,2.3389,2633.5,2632.6,3.79852]
[1724333588196,3.79762,2633.3,2632.6,3.79852]
[1724333588526,3.79728,2633.5,2632.8,3.79823]
[1724333588734,0.1261689,2633.6,2632.8,3.79813]
[1724333588885,3.79733,2633.5,2632.9,3.79808]
[1724333589079,0.1261689,2633.6,2632.2,6.1953]
[1724333589080,3.79798,2633.0,2632.2,6.1953]
[1724333589413,3.79735,2633.5,2632.8,3.79814]
[1724333589612,0.1261689,2633.6,2633.0,3.79793]
[1724333589850,0.1261689,2633.6,2633.1,3.79775]
[1724333590346,0.1261689,2633.6,2632.6,6.16267]
[1724333590347,0.1261689,2633.6,2632.6,2.3642]
[1724333590660,0.1261689,2633.6,2632.5,3.79853]
[1724333590661,3.79753,2633.3,2632.5,3.79863]
[1724333590864,3.79753,2633.3,2632.2,2.4563]
[1724333590865,0.1261689,2633.6,2633.0,3.79794]
[1724333591157,3.7975,2633.4,2632.5,2.4998]
[1724333591360,3.79748,2633.4,2632.5,6.84836]
[1724333591560,3.79748,2633.4,2632.7,3.79834]
[1724333591715,3.9233189,2633.6,2632.9,3.79795]
[1724333591917,0.1261689,2633.6,2633.1,3.79768]
[1724333592132,0.1261689,2633.6,2633.3,3.7974]
[1724333592772,0.1261689,2633.6,2633.1,4.177508]
[1724333592773,0.1261689,2633.6,2633.5,3.79722]
[1724333593058,0.0134663,2633.6,2633.5,9.89404]
[1724333593213,3.79593,2634.4,2633.8,3.79678]
[1724333593414,3.79593,2634.4,2633.7,3.7969]
[1724333593415,3.7958,2634.5,2633.9,3.79663]
[1724333593615,3.7958,2634.5,2633.7,4.40648]
[1724333593911,3.79593,2634.4,2633.7,4.40648]
[1724333594112,2.418,2634.4,2633.3,3.79747]
[1724333594434,3.79659,2634.0,2633.3,3.79742]
[1724333594774,3.79659,2634.0,2633.1,6.599778]
[1724333594914,3.79659,2634.0,2633.3,3.79751]
[1724333595117,7.59322,2634.0,2633.3,3.79751]
[1724333595309,2.81461465,2634.4,2633.0,3.0]
[1724333595553,2.81461465,2634.4,2632.7,2.41]
[1724333595554,3.79748,2633.4,2632.7,6.20828]
[1724333595761,3.79711,2633.6,2632.9,3.79808]
[1724333595920,6.08262,2634.1,2632.7,6.884106]
[1724333595921,2.2862,2634.1,2632.7,3.085826]
[1724333596119,2.2862,2633.3,2632.1,3.79916]
[1724333596351,3.79835,2632.8,2632.1,3.79914]
[1724333596557,6.08377,2633.3,2632.4,3.7987]
[1724333596558,3.79772,2633.2,2632.4,3.7987]
[1724333596718,3.79738,2633.4,2632.1,1.55466391]
[1724333596950,3.79748,2633.4,2632.0,3.79934]
[1724333597257,3.79748,2633.4,2632.5,3.79856]
[1724333597460,5.3492,2633.6,2632.3,3.79884]
[1724333597461,3.79781,2633.1,2632.3,3.79884]
[1724333597677,3.79781,2633.1,2632.4,3.79879]
[1724333598163,3.79778,2633.2,2632.5,3.79866]
[1724333598534,3.79778,2633.2,2632.6,3.79852]
[1724333599068,3.79743,2633.4,2632.7,3.79835]
[1724333599273,6.14633,2633.6,2632.7,3.79835]
[1724333599508,3.79713,2633.6,2632.7,3.79827]
[1724333599776,3.79686,2633.8,2633.0,3.79782]
[1724333599974,3.79686,2633.8,2632.9,3.798]
[1724333600276,3.79717,2633.6,2632.9,3.798]
[1724333600472,3.0,2633.9,2632.6,3.79851]
[1724333600473,3.79725,2633.5,2632.6,3.79851]
[1724333600622,3.79725,2633.5,2632.5,6.06563]
[1724333600832,3.79763,2633.3,2632.6,3.906563]
[1724333601163,3.0,2633.9,2632.1,3.7992]
[1724333601164,3.79746,2633.4,2632.8,3.7982]
[1724333601320,3.79746,2633.4,2632.1,3.0]
[1724333601321,3.79691,2633.8,2633.1,3.7977]
[1724333601521,3.79689,2633.8,2633.2,3.79765]
[1724333601719,3.79665,2633.9,2633.2,4.557206]
[1724333602169,3.79656,2634.0,2633.3,3.7974]
[1724333602742,3.79668,2633.9,2633.2,4.557126]
[1724333602919,7.59347,2633.9,2633.2,4.557126]
[1724333603120,7.59347,2633.9,2633.3,3.79751]
[1724333603121,3.79668,2633.9,2633.3,3.79751]
[1724333603833,3.79644,2634.1,2633.0,3.79785]
[1724333603834,3.79718,2633.6,2633.0,3.79785]
[1724333604043,3.79697,2633.7,2633.0,3.79785]
[1724333604356,3.79673,2633.9,2633.1,0.379785]
[1724333604586,3.79673,2633.9,2633.3,3.79747]
[1724333604749,3.79641,2634.1,2633.4,3.79735]
[1724333604968,2.70501465,2634.4,2633.2,3.79754]
[1724333605176,3.79716,2633.6,2633.0,3.79793]
[1724333605381,3.79716,2633.6,2633.0,3.79787]
[1724333605674,3.79716,2633.6,2632.8,3.79821]
[1724333605824,3.79747,2633.4,2632.7,3.79836]
[1724333606185,3.79676,2633.9,2633.2,3.79757]
[1724333606340,3.79663,2634.0,2633.3,3.79749]
[1724333606671,3.79735,2633.5,2632.9,3.79803]
[1724333606841,3.79752,2633.3,2632.5,3.7986]
[1724333607062,3.79752,2633.3,2632.6,3.79851]
[1724333607274,3.79792,2633.1,2632.3,3.79889]
[1724333607642,6.07828,2633.5,2632.1,3.79914]
[1724333607643,3.79822,2632.9,2632.1,3.79914]
[1724333607841,3.79828,2632.8,2632.1,3.79914]
[1724333608055,3.79822,2632.9,2632.1,3.79914]
[1724333608056,3.79822,2632.9,2632.2,3.79906]
[1724333608230,2.281,2633.5,2632.5,3.79856]
[1724333608231,3.79731,2633.5,2632.5,3.79856]
[1724333608432,3.7978,2633.1,2632.5,3.79856]
[1724333608667,3.7978,2633.1,2632.3,6.0791]
[1724333608668,3.7978,2633.1,2632.3,2.2802]
[1724333608859,3.7978,2633.1,2632.3,3.79883]
[1724333609173,3.79754,2633.3,2632.4,3.7988]
[1724333609674,3.79754,2633.3,2632.6,6.27298]
[1724333610081,3.79754,2633.3,2632.7,3.79836]
[1724333610580,3.79766,2633.2,2632.6,3.79848]
[1724333610787,3.79766,2633.2,2632.4,3.79876]
[1724333610788,3.79766,2633.2,2632.4,3.79871]
[1724333610929,3.79766,2633.2,2632.5,3.79866]
[1724333611284,3.0,2633.7,2632.5,3.79866]
[1724333611285,1.59446473,2633.7,2632.8,3.79813]
[1724333611487,3.79674,2633.9,2633.1,3.7977]
[1724333611944,3.79723,2633.5,2632.7,6.12547]
[1724333612461,3.79796,2633.0,2632.3,3.79885]
[1724333612663,3.79796,2633.0,2632.1,0.379914]
[1724333612664,3.79825,2632.8,2632.1,3.79911]
[1724333612868,3.79825,2632.8,2631.9,2.3845]
[1724333612869,3.79869,2632.5,2631.9,3.79948]
[1724333613089,3.79905,2632.3,2631.5,3.80006]
[1724333613305,3.79928,2632.1,2631.5,3.80006]
[1724333613494,1.59446473,2632.6,2631.5,0.380006]
[1724333613495,1.59446473,2632.5,2631.5,0.380006]
[1724333613782,3.04,2632.7,2632.1,3.79915]
[1724333614092,5.39237473,2633.1,2632.3,3.79881]
[1724333614292,5.39246473,2633.0,2632.3,3.79881]
[1724333614449,3.0,2632.9,2632.3,3.79881]
[1724333614788,3.0,2632.9,2632.0,2.3343]
[1724333614789,3.79834,2632.8,2632.0,2.3343]
[1724333615081,3.79863,2632.6,2631.9,3.79952]
[1724333615429,3.79863,2632.6,2631.7,3.7997]
[1724333615676,3.79896,2632.3,2631.7,3.7997]
[1724333615883,3.79883,2632.4,2631.7,3.7997]
[1724333616088,5.39300473,2632.6,2631.9,3.79953]
[1724333616294,1.59446473,2632.8,2632.0,2.4393]
[1724333616474,5.39217473,2633.2,2632.5,3.79866]
[1724333616779,3.79798,2633.0,2632.1,3.79917]
[1724333616981,3.7982,2632.9,2632.2,3.7991]
[1724333617303,3.79828,2632.8,2632.1,3.79911]
[1724333617437,1.59446473,2632.9,2632.4,3.79879]
[1724333617786,3.79772,2633.2,2632.2,3.799]
[1724333617787,5.39216473,2633.2,2632.2,3.799]
[1724333618085,3.79803,2633.0,2632.2,3.799]
[1724333618299,5.39249473,2633.0,2632.2,3.799]
[1724333618643,1.59446473,2633.0,2632.3,2.4753]
[1724333618843,7.44446473,2633.5,2632.3,2.4753]
[1724333619171,5.39244473,2633.0,2632.2,3.79905]
[1724333619375,5.39244473,2633.0,2632.3,3.79884]
[1724333619558,1.59446473,2633.0,2632.4,3.79879]
[1724333619757,5.39217473,2633.2,2632.5,3.79856]
[1724333620302,1.59446473,2633.1,2632.5,3.79856]
[1724333620587,1.59446473,2633.1,2632.6,3.79851]
[1724333620987,1.59446473,2633.1,2632.6,3.79842]
[1724333621156,1.59446473,2633.2,2632.7,3.79826]
[1724333621548,1.59446473,2633.2,2632.7,7.59655]
[1724333621776,1.59446473,2633.2,2632.8,3.79822]
[1724333621974,1.99061492,2633.4,2632.9,3.79808]
[1724333622149,1.59446473,2633.2,2632.7,6.29247]
[1724333622342,1.59446473,2633.1,2632.7,6.29247]
[1724333622586,1.59446473,2633.1,2632.7,3.79827]
[1724333623299,1.59446473,2633.1,2632.7,7.59656]
[1724333623448,1.59446473,2633.2,2632.7,3.79827]
[1724333623643,1.59446473,2633.1,2632.7,3.79837]
[1724333624244,1.59446473,2633.1,2631.9,3.79947]
[1724333624245,1.59446473,2632.9,2631.9,3.79947]
[1724333624486,3.79883,2632.4,2631.7,3.79971]
[1724333624702,5.39329473,2632.4,2631.7,3.79971]
[1724333624859,1.59446473,2632.3,2631.7,3.79971]
[1724333625064,3.79939,2632.0,2631.5,3.80004]
[1724333625289,3.79957,2631.9,2631.3,3.80033]
[1724333625495,1.59446473,2631.8,2631.3,3.80033]
[1724333625662,1.59446473,2631.9,2631.6,3.79984]
[1724333625866,8.44467178,2632.2,2631.3,0.760094]
[1724333625867,1.59446473,2632.1,2631.8,3.79958]
[1724333626079,1.98627648,2632.2,2631.9,2.38269434]
[1724333626080,1.59446473,2632.2,2631.9,2.38269434]
[1724333626389,1.59446473,2632.6,2632.2,3.79902]
[1724333626543,4.40446473,2632.7,2632.2,3.79902]
[1724333626994,8.20284473,2632.7,2632.2,3.79902]
[1724333627299,8.20284473,2632.7,2631.4,3.59393683]
[1724333627300,5.39313473,2632.5,2631.8,3.79958]
[1724333627594,1.59446473,2632.6,2632.0,3.79937]
[1724333627790,1.59446473,2632.6,2632.2,3.79899]
[1724333627991,1.59446473,2632.6,2632.0,7.59856]
[1724333628293,1.59446473,2632.4,2631.6,3.79992]
[1724333628498,4.29657648,2632.5,2631.4,6.80017]
[1724333628499,5.39359473,2632.2,2631.4,3.80017]
[1724333628664,5.39359473,2632.2,2631.2,3.80043]
[1724333628665,3.7995,2632.0,2631.2,3.80043]
[1724333628862,1.59446473,2631.9,2631.2,3.80043]
[1724333629263,3.79968,2631.8,2631.2,3.80043]
[1724333629469,1.59446473,2631.9,2631.2,3.80043]
[1724333629676,1.59446473,2631.9,2631.3,3.80037]
[1724333629883,1.59446473,2632.0,2631.4,3.80023]
[1724333630097,3.79949,2632.0,2631.4,3.80023]
[1724333630882,5.39395473,2632.0,2631.3,3.80037]
[1724333631092,3.79949,2632.0,2631.3,3.80037]
[1724333631291,3.79949,2632.0,2631.4,3.80025]
[1724333631880,3.79949,2632.0,2631.4,7.60034]
[1724333632065,3.79949,2632.0,2631.4,3.80017]
[1724333632268,3.79924,2632.1,2631.4,3.80017]
[1724333632513,3.79984,2631.7,2631.0,3.80077]
[1724333632673,5.24168165,2632.5,2631.1,3.80064]
[1724333632674,7.86724473,2631.8,2631.1,3.80064]
[1724333633011,7.86724473,2631.8,2630.7,2.4321]
[1724333633012,3.80049,2631.3,2630.7,2.4321]
[1724333633216,3.8004,2631.4,2630.8,3.80101]
[1724333633555,3.8004,2631.4,2630.8,7.60203]
[1724333634198,3.8004,2631.4,2630.8,3.80101]
[1724333634411,7.60015,2631.6,2630.8,3.801]
[1724333634554,6.79984,2631.7,2631.0,3.80069]
[1724333634756,3.0,2631.7,2631.0,4.180759]
[1724333635058,7.27,2631.9,2631.4,3.80016]
[1724333635657,7.27,2631.9,2631.4,7.60033]
[1724333635909,7.27,2631.9,2631.4,3.80016]
[1724333636106,7.27,2631.9,2631.4,7.60033]
[1724333636275,7.27,2631.9,2631.4,3.80016]
[1724333636710,3.79983,2631.7,2631.0,4.180839]
[1724333636855,3.80012,2631.5,2630.9,6.12446]
[1724333637062,3.80012,2631.5,2630.8,7.60207]
[1724333637306,7.60037,2631.5,2630.8,3.80103]
[1724333637513,3.80012,2631.5,2630.9,3.80095]
[1724333638204,3.80012,2631.5,2630.9,3.8009]
[1724333638716,3.80012,2631.5,2630.8,3.80102]
[1724333638717,3.80028,2631.4,2630.8,3.80102]
[1724333639058,3.80041,2631.3,2630.7,3.80122]
[1724333639266,3.80063,2631.2,2630.6,3.80139]
[1724333639464,3.80041,2631.3,2630.6,3.80139]
[1724333639465,3.8007,2631.1,2630.6,3.80139]
[1724333639679,2.4396,2631.0,2629.7,2.3346]
[1724333639964,7.27,2630.9,2630.4,3.80161]
[1724333640156,6.24044,2631.0,2630.5,3.80154]
[1724333640157,2.4396,2631.0,2630.5,3.80154]
[1724333640356,16.28076,2631.1,2630.7,3.80126]
[1724333640357,12.48,2631.1,2630.7,3.80126]
[1724333640672,12.48,2631.1,2630.7,3.80118]
[1724333641205,12.48,2631.1,2630.6,3.80133]
[1724333641506,3.80086,2631.0,2630.3,3.80176]
[1724333641713,3.80147,2630.6,2629.9,7.60464]
[1724333641876,3.80163,2630.5,2629.9,7.60461]
[1724333642213,3.80187,2630.3,2629.8,4.03598]
[1724333642518,3.80187,2630.3,2629.5,6.2336]
[1724333642665,3.80187,2630.3,2629.7,3.80261]
[1724333643002,3.80173,2630.4,2629.7,3.80261]
[1724333643370,23.55115,2630.8,2628.6,4.28053183]
[1724333643371,3.80214,2630.1,2629.3,3.80316]
[1724333643714,3.80208,2630.2,2629.6,3.80283]
[1724333643866,2.4586,2630.3,2629.7,3.80262]
[1724333644215,2.4586,2630.3,2629.5,7.60586]
[1724333644509,6.26058,2630.3,2629.7,7.60528]
[1724333644716,10.06252,2630.3,2629.7,3.80262]